fUST/lending_fUST_20240626
["ID","MTS","AMOUNT","RATE_DAILY","PERIOD"]
[330398595,1719347442343,-500.0,0.00016712,2]
[330398597,1719347442354,-500.0,0.00016712,2]
[330398599,1719347442363,-500.0,0.00016712,2]
[330398601,1719347442373,-500.0,0.00016712,2]
[330398603,1719347442384,-500.0,0.00016712,2]
[330398605,1719347442394,-500.0,0.00016712,2]
[330398607,1719347442402,-500.0,0.00016712,2]
[330398609,1719347442418,-531.28,0.00016712,2]
[330398611,1719347442428,-500.0,0.00016712,2]
[330398613,1719347442437,-1503.94,0.00016712,2]
[330398615,1719347442447,-500.0,0.00016712,2]
[330398617,1719347442456,-500.0,0.00016712,2]
[330398619,1719347442467,-151.0,0.00016712,2]
[330398621,1719347442477,-1138.52,0.00016712,2]
[330398623,1719347442487,-151.0,0.00016712,2]
[330398625,1719347442497,-661.01,0.00016712,2]
[330398627,1719347442507,-500.0,0.00016712,2]
[330398629,1719347442517,-500.0,0.00016712,2]
[330398631,1719347442527,-509.6179334,0.00016712,2]
[330398633,1719347442536,-500.0,0.00016712,2]
[330398635,1719347442546,-957.09,0.00016712,2]
[330398637,1719347442555,-500.0,0.00016712,2]
[330398639,1719347442564,-543.0,0.00016712,2]
[330398641,1719347442574,-500.0,0.00016712,2]
[330398643,1719347442583,-500.0,0.00016712,2]
[330398645,1719347442593,-500.0,0.00016712,2]
[330398647,1719347442603,-504.09378022,0.00016712,2]
[330398649,1719347442612,-186.49137259,0.00016712,2]
[330398651,1719347442621,-500.0,0.00016712,2]
[330398653,1719347442633,-606.46,0.00016712,2]
[330398655,1719347442642,-154.45674,0.00016712,2]
[330398657,1719347442651,-500.0,0.00016712,2]
[330398658,1719347442660,-705.28,0.00016712,2]
[330398660,1719347442670,-543.36,0.00016712,2]
[330398662,1719347442680,-500.0,0.00016712,2]
[330398664,1719347442689,-500.0,0.00016712,2]
[330398666,1719347442698,-494.43154635,0.00016712,2]
[330398669,1719347442712,-5.56845365,0.00016712,2]
[330398671,1719347442722,-500.0,0.00016712,2]
[330398673,1719347442730,-500.0,0.00016712,2]
[330398675,1719347442740,-500.0,0.00016712,2]
[330398677,1719347442749,-206.89839951,0.00016712,2]
[330398679,1719347442757,-500.0,0.00016712,2]
[330398681,1719347442767,-500.0,0.00016712,2]
[330398683,1719347442776,-500.0,0.00016712,2]
[330398685,1719347442785,-1267.48,0.00016712,2]
[330398686,1719347442794,-151.0,0.00016712,2]
[330398688,1719347442804,-151.0,0.00016712,2]
[330398690,1719347442814,-500.0,0.00016712,2]
[330398692,1719347442823,-424.68058365,0.00016712,2]
[330398694,1719347442833,-2401.02,0.00016712,2]
[330398696,1719347442843,-500.0,0.00016712,2]
[330398698,1719347442852,-500.0,0.00016712,2]
[330398700,1719347442863,-500.0,0.00016712,2]
[330398702,1719347442873,-1207.8,0.00016712,2]
[330398704,1719347442883,-500.0,0.00016712,2]
[330398706,1719347442892,-500.0,0.00016712,2]
[330398722,1719347443031,-500.0,0.00016712,2]
[330398724,1719347443041,-500.0,0.00016712,2]
[330398727,1719347443050,-500.0,0.00016712,2]
[330398729,1719347443059,-718.56,0.00016712,2]
[330398731,1719347443068,-500.0,0.00016712,2]
[330398733,1719347443077,-500.0,0.00016712,2]
[330398735,1719347443086,-500.0,0.00016712,2]
[330398737,1719347443094,-500.0,0.00016712,2]
[330398739,1719347443104,-500.0,0.00016712,2]
[330398741,1719347443113,-500.0,0.00016712,2]
[330398743,1719347443122,-769.71,0.00016712,2]
[330398745,1719347443132,-500.0,0.00016712,2]
[330398747,1719347443141,-500.0,0.00016712,2]
[330398749,1719347443150,-500.0,0.00016712,2]
[330398751,1719347443159,-504.51346287,0.00016712,2]
[330398753,1719347443168,-500.0,0.00016712,2]
[330398755,1719347443178,-151.0,0.00016712,2]
[330398757,1719347443186,-500.0,0.00016712,2]
[330398759,1719347443195,-579.69,0.00016712,2]
[330398761,1719347443205,-500.0,0.00016712,2]
[330398763,1719347443214,-500.0,0.00016712,2]
[330398765,1719347443223,-151.0,0.00016712,2]
[330398767,1719347443232,-151.0,0.00016712,2]
[330398769,1719347443241,-2657.49,0.00016712,2]
[330398771,1719347443250,-500.0,0.00016712,2]
[330398773,1719347443260,-500.0,0.00016712,2]
[330398775,1719347443269,-574.07,0.00016712,2]
[330398777,1719347443278,-757.35,0.00016712,2]
[330398779,1719347443287,-500.0,0.00016712,2]
[330398781,1719347443296,-649.23,0.00016712,2]
[330398782,1719347443307,-500.0,0.00016712,2]
[330398785,1719347443318,-500.0,0.00016712,2]
[330398787,1719347443327,-500.0,0.00016712,2]
[330398788,1719347443336,-1571.11,0.00016712,2]
[330398790,1719347443346,-500.0,0.00016712,2]
[330398793,1719347443355,-500.0,0.00016712,2]
[330398794,1719347443364,-1647.81,0.00016712,2]
[330398796,1719347443373,-500.0,0.00016712,2]
[330398798,1719347443385,-500.0,0.00016712,2]
[330398800,1719347443396,-151.0,0.00016712,2]
[330398802,1719347443406,-151.0,0.00016712,2]
[330398805,1719347443416,-631.95,0.00016712,2]
[330398807,1719347443426,-500.0,0.00016712,2]
[330398809,1719347443435,-4909.06,0.00016712,2]
[330398811,1719347443444,-500.0,0.00016712,2]
[330398812,1719347443453,-151.0,0.00016712,2]
[330398814,1719347443462,-910.42,0.00016712,2]
[330398816,1719347443472,-500.0,0.00016712,2]
[330398818,1719347443481,-25247.71,0.00016712,2]
[330398820,1719347443490,-500.0,0.00016712,2]
[330398822,1719347443499,-638.83,0.00016712,2]
[330398824,1719347443510,-2968.01,0.00016712,2]
[330398826,1719347443519,-500.0,0.00016712,2]
[330398828,1719347443528,-500.0,0.00016712,2]
[330398830,1719347443538,-151.0,0.00016712,2]
[330398833,1719347443547,-151.0,0.00016712,2]
[330398834,1719347443557,-500.0,0.00016712,2]
[330398836,1719347443566,-459.59780693,0.00016712,2]
[330398837,1719347443575,-151.0,0.00016712,2]
[330398838,1719347443584,-500.0,0.00016712,2]
[330398839,1719347443593,-219.980532,0.00016712,2]
[330398840,1719347443603,-1276.87,0.00016712,2]
[330398841,1719347443611,-500.0,0.00016712,2]
[330398842,1719347443620,-500.0,0.00016712,2]
[330398843,1719347443629,-500.0,0.00016712,2]
[330398844,1719347443640,-500.0,0.00016712,2]
[330398845,1719347443650,-500.0,0.00016712,2]
[330398846,1719347443658,-500.0,0.00016712,2]
[330398847,1719347443668,-942.43,0.00016712,2]
[330398848,1719347443677,-2968.14,0.00016712,2]
[330398849,1719347443686,-500.0,0.00016712,2]
[330398850,1719347443695,-500.0,0.00016712,2]
[330398851,1719347443704,-504.26,0.00016712,2]
[330398852,1719347443713,-1755.81,0.00016712,2]
[330398853,1719347443722,-500.0,0.00016712,2]
[330398854,1719347443731,-638.32,0.00016712,2]
[330398855,1719347443740,-1021.69,0.00016712,2]
[330398856,1719347443750,-1332.02,0.00016712,2]
[330398857,1719347443759,-1180.99,0.00016712,2]
[330398858,1719347443769,-997.59,0.00016712,2]
[330398859,1719347443779,-500.0,0.00016712,2]
[330398860,1719347443787,-500.0,0.00016712,2]
[330398861,1719347443797,-844.68,0.00016712,2]
[330398862,1719347443806,-1580.16,0.00016712,2]
[330398863,1719347443815,-561.26,0.00016712,2]
[330398864,1719347443824,-500.0,0.00016712,2]
[330398865,1719347443833,-500.0,0.00016712,2]
[330398866,1719347443842,-547.83,0.00016712,2]
[330398867,1719347443851,-7838.68,0.00016712,2]
[330398868,1719347443862,-151.0,0.00016712,2]
[330398869,1719347443872,-1203.44,0.00016712,2]
[330398870,1719347443882,-151.0,0.00016712,2]
[330398871,1719347443891,-620.12,0.00016712,2]
[330398872,1719347443900,-500.0,0.00016712,2]
[330398873,1719347443909,-1661.01,0.00016712,2]
[330398874,1719347443918,-500.0,0.00016712,2]
[330398875,1719347443927,-500.0,0.00016712,2]
[330398876,1719347443937,-500.0,0.00016712,2]
[330398877,1719347443947,-500.0,0.00016712,2]
[330398878,1719347443956,-151.0,0.00016712,2]
[330398879,1719347443965,-1078.85,0.00016712,2]
[330398880,1719347443975,-151.0,0.00016712,2]
[330398881,1719347443984,-2059.83,0.00016712,2]
[330398882,1719347443993,-500.0,0.00016712,2]
[330398883,1719347444003,-22793.34,0.00016712,2]
[330398884,1719347444012,-151.0,0.00016712,2]
[330398885,1719347444022,-500.0,0.00016712,2]
[330398886,1719347444031,-151.0,0.00016712,2]
[330398887,1719347444040,-500.0,0.00016712,2]
[330398888,1719347444050,-500.0,0.00016712,2]
[330398889,1719347444058,-500.0,0.00016712,2]
[330398891,1719347444067,-509.13605273,0.00016712,2]
[330398893,1719347444076,-8744.97,0.00016712,2]
[330398895,1719347444086,-500.0,0.00016712,2]
[330398897,1719347444095,-500.0,0.00016712,2]
[330398898,1719347444105,-9208.08,0.00016712,2]
[330398900,1719347444114,-500.0,0.00016712,2]
[330398902,1719347444123,-2956.63,0.00016712,2]
[330398904,1719347444133,-500.0,0.00016712,2]
[330398905,1719347444141,-873.51,0.00016712,2]
[330398907,1719347444151,-508.40846593,0.00016712,2]
[330398909,1719347444160,-151.0,0.00016712,2]
[330398911,1719347444169,-2807.04,0.00016712,2]
[330398913,1719347444178,-500.0,0.00016712,2]
[330398915,1719347444188,-500.0,0.00016712,2]
[330398917,1719347444197,-500.0,0.00016712,2]
[330398919,1719347444207,-500.0,0.00016712,2]
[330398921,1719347444216,-1124.34,0.00016712,2]
[330398923,1719347444225,-500.0,0.00016712,2]
[330398925,1719347444235,-966.22,0.00016712,2]
[330398926,1719347444244,-500.0,0.00016712,2]
[330398928,1719347444253,-500.0,0.00016712,2]
[330398930,1719347444262,-500.0,0.00016712,2]
[330398932,1719347444271,-500.0,0.00016712,2]
[330398934,1719347444280,-500.0,0.00016712,2]
[330398936,1719347444290,-187.959136,0.00016712,2]
[330398938,1719347444299,-187.959136,0.00016712,2]
[330398940,1719347444313,-500.0,0.00016712,2]
[330398942,1719347444322,-500.0,0.00016712,2]
[330398944,1719347444332,-1040.57,0.00016712,2]
[330398946,1719347444341,-151.0,0.00016712,2]
[330398948,1719347444352,-187.959136,0.00016712,2]
[330398950,1719347444361,-187.959136,0.00016712,2]
[330398952,1719347444370,-500.0,0.00016712,2]
[330398954,1719347444379,-500.0,0.00016712,2]
[330398956,1719347444393,-761.23,0.00016712,2]
[330398958,1719347444403,-4373.23,0.00016712,2]
[330398960,1719347444412,-500.0,0.00016712,2]
[330398962,1719347444421,-4723.37,0.00016712,2]
[330398964,1719347444431,-500.0,0.00016712,2]
[330398966,1719347444440,-500.0,0.00016712,2]
[330398968,1719347444449,-500.0,0.00016712,2]
[330398970,1719347444458,-500.0,0.00016712,2]
[330398972,1719347444467,-157.71949912,0.00016712,2]
[330398996,1719347444811,-342.28050088,0.00016712,2]
[330398998,1719347444821,-500.0,0.00016712,2]
[330399000,1719347444830,-358.86261391,0.00016712,2]
[330399002,1719347444839,-205.6831939,0.00016712,2]
[330399004,1719347444848,-594.0,0.000169,2]
[330399005,1719347444857,-876.0,0.00016903,2]
[330399006,1719347444869,-704.42,0.00016985,2]
[330399007,1719347444878,-704.42,0.00016985,2]
[330399008,1719347444889,-704.42,0.00016985,2]
[330399009,1719347444898,-704.42,0.00016985,2]
[330399010,1719347444907,-704.42,0.00016985,2]
[330399011,1719347444916,-500.0,0.00016986,2]
[330399012,1719347444925,-500.0,0.00016986,2]
[330399013,1719347444934,-500.0,0.00016986,2]
[330399014,1719347444943,-500.0,0.00016986,2]
[330399015,1719347444952,-500.0,0.00016986,2]
[330399016,1719347444961,-500.0,0.00016986,2]
[330399017,1719347444970,-500.0,0.00016986,2]
[330399018,1719347444980,-500.0,0.00016986,2]
[330399019,1719347444988,-554.39,0.00016986,2]
[330399020,1719347444998,-154.372248,0.00016986,2]
[330399022,1719347445007,-285.708413,0.00016986,2]
[330399023,1719347445016,-562.55,0.00016986,2]
[330399025,1719347445025,-823.71,0.00016986,2]
[330399027,1719347445034,-788.82,0.00016986,2]
[330399028,1719347445043,-505.70805807,0.00016986,2]
[330399029,1719347445052,-509.77590507,0.00016986,2]
[330399031,1719347445061,-578.45,0.00016986,2]
[330399032,1719347445070,-500.0,0.00016986,2]
[330399033,1719347445079,-500.0,0.00016986,2]
[330399034,1719347445089,-151.0,0.00016986,2]
[330399035,1719347445098,-151.0,0.00016986,2]
[330399036,1719347445107,-500.0,0.00016986,2]
[330399037,1719347445115,-500.0,0.00016986,2]
[330399038,1719347445125,-178.26475903,0.00016986,2]
[330399039,1719347445134,-278.39969727,0.00016986,2]
[330399040,1719347445143,-495.71456584,0.00016986,2]
[330399041,1719347445151,-500.0,0.00016986,2]
[330399042,1719347445161,-362.52947356,0.00016986,2]
[330399043,1719347445169,-514.25298232,0.00016986,2]
[330399044,1719347445178,-1372.35,0.00016986,2]
[330399045,1719347445187,-497.73608333,0.00016986,2]
[330399046,1719347445196,-174.395198,0.00016986,2]
[330399047,1719347445205,-7250.64,0.00016986,2]
[330399048,1719347445214,-500.0,0.00016986,2]
[330399049,1719347445223,-500.0,0.00016986,2]
[330399050,1719347445232,-763.07,0.00016986,2]
[330399051,1719347445241,-684.99,0.00016986,2]
[330399052,1719347445250,-500.0,0.00016986,2]
[330399053,1719347445259,-151.0,0.00016986,2]
[330399054,1719347445268,-500.0,0.00016986,2]
[330399055,1719347445277,-151.0,0.00016986,2]
[330399056,1719347445286,-654.29,0.00016986,2]
[330399058,1719347445295,-500.0,0.00016986,2]
[330399060,1719347445304,-151.0,0.00016986,2]
[330399061,1719347445316,-500.0,0.00016986,2]
[330399063,1719347445325,-1138.1,0.00016986,2]
[330399064,1719347445336,-504.75926652,0.00016986,2]
[330399065,1719347445345,-500.0,0.00016986,2]
[330399066,1719347445356,-500.0,0.00016986,2]
[330399068,1719347445365,-500.0,0.00016986,2]
[330399069,1719347445374,-500.0,0.00016986,2]
[330399070,1719347445385,-500.0,0.00016986,2]
[330399071,1719347445394,-500.0,0.00016986,2]
[330399072,1719347445403,-500.0,0.00016986,2]
[330399073,1719347445412,-1503.94,0.00016986,2]
[330399074,1719347445425,-431.14066278,0.00016986,2]
[330400274,1719347942629,1568.83964919,0.00013999,2]
[330400275,1719348032231,16220.66177805,0.00013999,2]
[330400276,1719348059919,1326.73841652,0.00013999,2]
[330400278,1719348120237,16220.66177805,0.00013999,2]
[330400280,1719348216277,16220.66177805,0.00013999,2]
[330400283,1719348317250,16201.97577845,0.00013999,2]
[330400286,1719348560095,-1153.90689464,0.00014759,2]
[330400343,1719348632220,-1131.61870056,0.00014759,2]
[330400345,1719348632230,-24576.1256028,0.00014771,2]
[330400347,1719348632240,-225.43680534,0.00014989,2]
[330400349,1719348632251,-71.19149166,0.00014989,2]
[330400351,1719348632260,-386.32050834,0.00015323,2]
[330400878,1719348638021,-159.33316742,0.00015322,2]
[330400880,1719348638033,-137.46918199,0.00015323,2]
[330400882,1719348638045,-723.85909681,0.00015324,2]
[330400884,1719348638057,-239.60614247,0.00015325,2]
[330400887,1719348638069,-1374.81809454,0.00015698,2]
[330400889,1719348638080,-490.34211049,0.00015699,2]
[330400891,1719348638091,-154.85288975,0.00015699,2]
[330400893,1719348638103,-370.86282242,0.000157,2]
[330400896,1719348638117,-619.63178126,0.000157,2]
[330400898,1719348638130,-385.31519327,0.00015705,2]
[330400921,1719348638343,-732.55953506,0.00015705,2]
[330400923,1719348638358,-154.85288975,0.00016132,2]
[330400925,1719348638369,-179.55856838,0.00016133,2]
[330400927,1719348638381,-154.85288975,0.00016133,2]
[330400929,1719348638393,-154.85288975,0.00016133,2]
[330400932,1719348638404,-156.42887627,0.00016133,2]
[330400934,1719348638415,-292.95882568,0.00016134,2]
[330400936,1719348638426,-2585.48794718,0.00016134,2]
[330400938,1719348638442,-489.35228088,0.00016134,2]
[330400940,1719348638454,-531.01956017,0.00016134,2]
[330400943,1719348638465,-154.85288975,0.00016134,2]
[330400945,1719348638477,-154.85288975,0.00016134,2]
[330400947,1719348638488,-154.85288975,0.00016135,2]
[330400949,1719348638501,-154.85288975,0.00016135,2]
[330400952,1719348638514,-402.69286276,0.00016135,2]
[330400954,1719348638526,-154.85288975,0.00016135,2]
[330400956,1719348638540,-154.85288975,0.00016135,2]
[330400958,1719348638551,-208.81152895,0.00016135,2]
[330400960,1719348638561,-8824.53616521,0.00016136,2]
[330400962,1719348638570,-318.1015147,0.00016136,2]
[330400964,1719348638580,-227.88919192,0.00016137,2]
[330400984,1719348638784,-175.97073239,0.00016139,2]
[330400987,1719348638802,-154.83742071,0.00016139,2]
[330400989,1719348638812,-154.83742071,0.00016139,2]
[330400991,1719348638822,-157.97086132,0.0001616,2]
[330400993,1719348638832,-530.68091072,0.00016259,2]
[330400995,1719348638844,-10586.69717265,0.00016259,2]
[330400997,1719348638854,-500.0,0.0001626,7]
[330400999,1719348638864,-500.0,0.0001626,7]
[330401001,1719348638874,-500.0,0.0001626,7]
[330401003,1719348638884,-500.0,0.0001626,7]
[330401005,1719348638893,-500.0,0.0001626,7]
[330401007,1719348638903,-500.0,0.0001626,7]
[330401009,1719348638912,-500.0,0.0001626,7]
[330401011,1719348638924,-500.0,0.0001626,7]
[330401013,1719348638934,-527.56,0.0001626,7]
[330401015,1719348638944,-613.85,0.0001626,7]
[330401017,1719348638953,-401.59956828,0.00016296,2]
[330401019,1719348638963,-1487.05343949,0.00016296,2]
[330401021,1719348638973,-373.67425734,0.00016296,2]
[330401023,1719348638983,-157.97086132,0.00016338,2]
[330401025,1719348638992,-500.0,0.00016438,2]
[330401027,1719348639001,-250.0,0.00016438,2]
[330401029,1719348639010,-528.73676303,0.00016438,2]
[330401031,1719348639019,-500.0,0.00016438,2]
[330401033,1719348639030,-500.0,0.00016438,2]
[330401035,1719348639040,-500.0,0.00016438,2]
[330401037,1719348639050,-500.0,0.00016438,2]
[330401038,1719348639060,-205.69006155,0.00016438,2]
[330401039,1719348639071,-500.0,0.00016438,2]
[330401040,1719348639081,-627.91,0.00016438,2]
[330401041,1719348639090,-500.0,0.00016438,2]
[330401042,1719348639100,-500.0,0.00016438,2]
[330401043,1719348639109,-500.0,0.00016438,2]
[330401044,1719348639119,-500.0,0.00016438,2]
[330401045,1719348639128,-500.0,0.00016438,2]
[330401046,1719348639138,-500.0,0.00016438,2]
[330401047,1719348639147,-786.27,0.00016438,2]
[330401048,1719348639157,-500.0,0.00016438,2]
[330401049,1719348639166,-500.0,0.00016438,2]
[330401050,1719348639176,-500.0,0.00016438,2]
[330401051,1719348639185,-500.0,0.00016438,2]
[330401052,1719348639194,-500.0,0.00016438,2]
[330401053,1719348639203,-500.0,0.00016438,2]
[330401054,1719348639212,-500.0,0.00016438,2]
[330401055,1719348639221,-306.39074947,0.00016438,2]
[330401056,1719348639231,-500.0,0.00016438,2]
[330401057,1719348639240,-500.0,0.00016438,2]
[330401058,1719348639249,-500.0,0.00016438,2]
[330401059,1719348639258,-500.0,0.00016438,2]
[330401060,1719348639267,-500.0,0.00016438,2]
[330401061,1719348639276,-548.29321698,0.00016438,2]
[330401062,1719348639286,-500.0,0.00016438,2]
[330401063,1719348639295,-500.0,0.00016438,2]
[330401064,1719348639305,-500.0,0.00016438,2]
[330401065,1719348639314,-500.0,0.00016438,2]
[330401066,1719348639324,-500.0,0.00016438,2]
[330401067,1719348639333,-500.0,0.00016438,2]
[330401068,1719348639342,-770.33,0.00016438,2]
[330401069,1719348639352,-500.0,0.00016438,2]
[330401070,1719348639362,-500.0,0.00016438,2]
[330401071,1719348639372,-650.81,0.00016438,2]
[330401072,1719348639381,-500.0,0.00016438,2]
[330401073,1719348639390,-500.0,0.00016438,2]
[330401074,1719348639400,-500.0,0.00016438,2]
[330401075,1719348639409,-500.0,0.00016438,2]
[330401076,1719348639419,-500.0,0.00016438,2]
[330401077,1719348639428,-500.0,0.00016438,2]
[330401078,1719348639438,-1146.46,0.00016438,2]
[330401079,1719348639447,-500.0,0.00016438,2]
[330401080,1719348639457,-500.0,0.00016438,2]
[330401081,1719348639466,-500.0,0.00016438,2]
[330401082,1719348639475,-500.0,0.00016438,2]
[330401083,1719348639485,-500.0,0.00016438,2]
[330401084,1719348639494,-500.0,0.00016438,2]
[330401085,1719348639503,-500.0,0.00016438,2]
[330401086,1719348639512,-500.0,0.00016438,2]
[330401087,1719348639522,-500.0,0.00016438,2]
[330401088,1719348639531,-500.0,0.00016438,2]
[330401089,1719348639540,-500.0,0.00016438,2]
[330401090,1719348639549,-500.0,0.00016438,2]
[330401091,1719348639558,-500.0,0.00016438,2]
[330401092,1719348639567,-1304.54,0.00016438,2]
[330401093,1719348639577,-500.0,0.00016438,2]
[330401094,1719348639586,-1045.35,0.00016438,2]
[330401095,1719348639595,-500.0,0.00016438,2]
[330401097,1719348639605,-500.0,0.00016438,2]
[330401098,1719348639614,-500.0,0.00016438,2]
[330401099,1719348639623,-500.0,0.00016438,2]
[330401100,1719348639631,-584.88,0.00016438,2]
[330401101,1719348639641,-500.0,0.00016438,2]
[330401102,1719348639650,-500.0,0.00016438,2]
[330401103,1719348639660,-500.0,0.00016438,2]
[330401104,1719348639670,-500.0,0.00016438,2]
[330401105,1719348639680,-500.0,0.00016438,2]
[330401106,1719348639692,-500.0,0.00016438,2]
[330401107,1719348639704,-500.0,0.00016438,2]
[330401108,1719348639714,-500.0,0.00016438,2]
[330401109,1719348639724,-500.0,0.00016438,2]
[330401110,1719348639733,-1504.96,0.00016438,2]
[330401111,1719348639745,-500.0,0.00016438,2]
[330401112,1719348639755,-500.0,0.00016438,2]
[330401113,1719348639765,-500.0,0.00016438,2]
[330401114,1719348639776,-500.0,0.00016438,2]
[330401115,1719348639787,-500.0,0.00016438,2]
[330401116,1719348639797,-500.0,0.00016438,2]
[330401117,1719348639807,-500.0,0.00016438,2]
[330401118,1719348639816,-500.0,0.00016438,2]
[330401119,1719348639826,-500.0,0.00016438,2]
[330401120,1719348639836,-500.0,0.00016438,2]
[330401121,1719348639845,-500.0,0.00016438,2]
[330401122,1719348639855,-500.0,0.00016438,2]
[330401123,1719348639865,-1236.2,0.00016438,2]
[330401124,1719348639875,-500.0,0.00016438,2]
[330401125,1719348639884,-500.0,0.00016438,2]
[330401126,1719348639894,-500.0,0.00016438,2]
[330401127,1719348639903,-581.65,0.00016438,2]
[330401128,1719348639913,-500.0,0.00016438,2]
[330401129,1719348639923,-500.0,0.00016438,2]
[330401130,1719348639932,-991.85,0.00016438,2]
[330401131,1719348639942,-500.0,0.00016438,2]
[330401132,1719348639952,-541.70945954,0.00016438,2]
[330401133,1719348639961,-780.38,0.00016438,2]
[330401134,1719348639971,-500.0,0.00016438,2]
[330401135,1719348639981,-500.0,0.00016438,2]
[330401136,1719348639990,-500.0,0.00016438,2]
[330401137,1719348639999,-839.65,0.00016438,2]
[330401138,1719348640008,-500.0,0.00016438,2]
[330401139,1719348640017,-500.0,0.00016438,2]
[330401140,1719348640026,-500.0,0.00016438,2]
[330401141,1719348640035,-500.0,0.00016438,2]
[330401142,1719348640044,-500.0,0.00016438,2]
[330401143,1719348640054,-2639.84,0.00016438,2]
[330401144,1719348640064,-500.0,0.00016438,2]
[330401145,1719348640073,-500.0,0.00016438,2]
[330401146,1719348640083,-500.0,0.00016438,2]
[330401147,1719348640092,-500.0,0.00016438,2]
[330401148,1719348640101,-1030.25,0.00016438,2]
[330401149,1719348640111,-1003.13,0.00016438,2]
[330401150,1719348640120,-576.91,0.00016438,2]
[330401151,1719348640130,-500.0,0.00016438,2]
[330401152,1719348640139,-500.0,0.00016438,2]
[330401153,1719348640149,-500.0,0.00016438,2]
[330401154,1719348640158,-500.0,0.00016438,2]
[330401155,1719348640168,-500.0,0.00016438,2]
[330401156,1719348640177,-500.0,0.00016438,2]
[330401157,1719348640187,-500.0,0.00016438,2]
[330401158,1719348640197,-500.0,0.00016438,2]
[330401159,1719348640206,-500.0,0.00016438,2]
[330401160,1719348640215,-500.0,0.00016438,2]
[330401161,1719348640224,-500.0,0.00016438,2]
[330401162,1719348640234,-500.0,0.00016438,2]
[330401163,1719348640243,-500.0,0.00016438,2]
[330401164,1719348640252,-597.10015087,0.00016438,2]
[330401165,1719348640262,-500.0,0.00016438,2]
[330401166,1719348640271,-500.39665714,0.00016438,2]
[330401167,1719348640281,-500.0,0.00016438,2]
[330401168,1719348640290,-500.0,0.00016438,2]
[330401169,1719348640299,-500.0,0.00016438,2]
[330401170,1719348640308,-500.0,0.00016438,2]
[330401171,1719348640317,-779.3,0.00016438,2]
[330401172,1719348640327,-500.0,0.00016438,2]
[330401173,1719348640336,-21999.72,0.00016438,2]
[330401174,1719348640345,-576.86093411,0.00016438,2]
[330401175,1719348640356,-500.0,0.00016438,2]
[330401176,1719348640365,-500.0,0.00016438,2]
[330401177,1719348640374,-500.0,0.00016438,2]
[330401178,1719348640384,-500.0,0.00016438,2]
[330401179,1719348640393,-500.0,0.00016438,2]
[330401180,1719348640402,-500.0,0.00016438,2]
[330401181,1719348640411,-500.0,0.00016438,2]
[330401182,1719348640421,-500.0,0.00016438,2]
[330401183,1719348640430,-500.0,0.00016438,2]
[330401184,1719348640439,-515.6730036,0.00016438,2]
[330401185,1719348640448,-500.0,0.00016438,2]
[330401186,1719348640457,-500.0,0.00016438,2]
[330401187,1719348640466,-1655.1,0.00016438,2]
[330401188,1719348640476,-559.31710814,0.00016438,2]
[330401189,1719348640485,-500.0,0.00016438,2]
[330401190,1719348640494,-500.0,0.00016438,2]